bitfinex/quotes_ETHUSD_20220311
["timestamp","ask_amount","ask_price","bid_price","bid_amount"]
[1647013314106,0.0024108,2590.7,2590.2,1.4577854]
[1647013314505,0.0024108,2590.7,2590.0,0.08487765]
[1647013314705,0.02323568,2590.9,2589.8,1.1581204]
[1647013314905,0.02323568,2590.9,2590.0,0.5790873]
[1647013315110,0.00416486,2590.6,2590.0,0.5790873]
[1647013315510,0.96932486,2590.6,2590.0,0.5790873]
[1647013315711,0.04944729,2590.7,2590.0,0.5790873]
[1647013315910,0.04944729,2590.7,2590.1,1.1580291]
[1647013316114,0.04465123,2590.8,2590.1,1.1580291]
[1647013316312,0.00416496,2590.4,2590.2,0.5790366]
[1647013316511,0.00416496,2590.4,2590.2,0.8790366]
[1647013316713,0.00416496,2590.4,2590.3,0.93948371]
[1647013316914,0.00416496,2590.4,2590.3,1.0151495]
[1647013317114,0.02323568,2590.9,2590.3,0.07566579]
[1647013317316,0.00416496,2590.4,2590.3,0.07566579]
[1647013318338,1.08260287,2590.9,2590.3,0.07566579]
[1647013318641,0.00396917,2590.5,2590.2,0.8790366]
[1647013319340,0.00396917,2590.5,2590.4,0.08188878]
[1647013319542,0.02323568,2590.9,2590.4,0.66088718]
[1647013319743,0.02323568,2590.9,2590.4,0.96088718]
[1647013319942,0.0036718,2590.5,2590.4,0.8789984]
[1647013320645,1.17625197,2590.9,2590.4,0.8789984]
[1647013320646,0.03792068,2590.9,2590.4,0.8789984]
[1647013320843,0.02323568,2590.9,2590.4,0.8789984]
[1647013321045,0.00367174,2590.6,2590.4,0.8789984]
[1647013322086,0.02323568,2590.9,2590.4,0.8789984]
[1647013322286,0.00379956,2590.6,2590.4,0.8789984]
[1647013323091,0.02323568,2590.9,2590.4,0.96503758]
[1647013323490,0.00397299,2590.6,2590.4,1.26503758]
[1647013323691,0.00397299,2590.6,2590.5,0.07042939]
[1647013324291,0.02323568,2590.9,2590.5,0.26435976]
[1647013324491,0.02323568,2590.9,2590.7,1.01481847]
[1647013324693,0.02323568,2590.9,2590.8,0.08356326]
[1647013324892,0.03745313,2591.5,2590.8,0.08356326]
[1647013325141,0.03745313,2591.5,2591.0,0.37873535]
[1647013326240,0.03745313,2591.5,2591.2,0.3]
[1647013326445,0.03745313,2591.5,2591.2,0.37694294]
[1647013327041,0.03745313,2591.5,2591.2,0.07694294]
[1647013327242,0.03745313,2591.5,2591.3,1.1574582]
[1647013327439,0.03745313,2591.5,2591.3,1.4574582]
[1647013327641,0.03745313,2591.5,2591.4,0.06933744]
[1647013327840,0.03745313,2591.5,2591.3,1.31878332]
[1647013328641,0.03745313,2591.5,2591.3,2.27723497]
[1647013328891,0.03745313,2591.5,2591.3,1.31878332]
[1647013329298,0.03984738,2591.5,2591.3,1.31878332]
[1647013329704,0.03984738,2591.5,2591.4,0.08242896]
[1647013330600,0.04205887,2591.5,2591.4,0.08242896]
[1647013331416,0.0090347,2591.7,2591.5,0.0171]
[1647013331613,0.01645662,2592.2,2591.6,6.5164]
[1647013331905,0.03452602,2592.2,2591.7,0.0770714]
[1647013332102,0.01666463,2592.0,2591.9,5.5]
[1647013332302,0.0180694,2592.2,2592.0,6.5]
[1647013332551,0.0180694,2592.2,2592.1,1.04651112]
[1647013335249,0.0180694,2592.2,2592.1,0.08256112]
[1647013335445,0.0180694,2592.2,2592.0,3.1062996]
[1647013335645,0.0180694,2592.2,2592.0,1.1783996]
[1647013336488,0.02198239,2592.2,2592.0,1.1783996]
[1647013336694,0.02198239,2592.2,2592.0,0.8783996]
[1647013336890,0.02198239,2592.2,2592.0,0.5783996]
[1647013337290,0.02198239,2592.2,2591.9,0.50391353]
[1647013337492,0.0180694,2592.2,2591.9,0.5]
[1647013337694,0.0180694,2592.2,2591.5,0.578769]
[1647013338092,0.0180694,2592.2,2591.9,0.00391353]
[1647013338290,0.98658239,2592.2,2591.9,0.00391353]
[1647013338492,3.54625837,2592.1,2591.9,0.00391353]
[1647013338695,3.54625837,2592.1,2591.2,0.25]
[1647013338696,0.05124415,2592.0,2591.2,0.25]
[1647013338894,0.05124415,2592.0,2590.6,8.6595]
[1647013338895,0.04777532,2591.8,2590.6,2.9903]
[1647013339094,19.5472,2591.7,2590.6,0.5]
[1647013339302,0.9651,2590.8,2590.6,0.5]
[1647013339495,0.9651,2590.8,2590.1,1.6742111]
[1647013339694,0.05096304,2590.7,2590.1,1.6742111]
[1647013339895,0.05096304,2590.7,2590.1,0.5790558]
[1647013340154,0.05096304,2590.7,2590.0,1.1580786]
[1647013340357,0.04797441,2590.9,2590.0,2.1230286]
[1647013340556,0.05146367,2591.2,2590.0,3.0879786]
[1647013340755,0.05146367,2591.2,2590.1,0.5790523]
[1647013341057,3.55146367,2591.2,2590.1,0.5790523]
[1647013341257,3.55146367,2591.2,2590.0,1.1580786]
[1647013341258,0.04729707,2591.1,2590.0,1.1580786]
[1647013341458,0.96514,2590.7,2590.0,1.1580786]
[1647013341660,0.04718405,2590.6,2590.0,1.1580786]
[1647013341863,0.04718405,2590.6,2590.1,0.5790528]
[1647013342257,0.04718405,2590.6,2589.5,3.4107]
[1647013342258,3.54718405,2590.6,2589.5,3.4107]
[1647013342458,3.54718405,2590.6,2589.5,2.2521]
[1647013342459,0.05832745,2590.2,2589.5,2.2521]
[1647013342658,4.5,2590.6,2589.3,5.30084726]
[1647013342659,0.05321844,2590.5,2589.3,5.30084726]
[1647013342860,0.05321844,2590.5,2589.3,1.08943726]
[1647013343059,0.05321844,2590.5,2589.6,0.5791463]
[1647013343270,0.05321844,2590.5,2589.8,0.96514]
[1647013343905,0.05321844,2590.5,2589.5,1.93028]
[1647013344305,1.01572376,2590.5,2589.8,0.00418792]
[1647013344510,3.55532675,2590.4,2589.8,0.00418792]
[1647013344706,0.96547,2589.9,2588.8,0.96551]
[1647013344906,0.96547,2589.9,2588.3,0.3215553]
[1647013344907,6.5,2589.7,2588.3,0.3215553]
[1647013345112,6.5,2589.7,2588.3,0.25]
[1647013345113,3.0,2589.1,2588.3,0.25]
[1647013345310,3.0,2589.1,2588.1,1.01531413]
[1647013345311,0.50720536,2589.0,2588.1,1.01531413]
[1647013345509,0.50720536,2589.0,2587.9,0.1798]
[1647013345510,0.05636927,2588.9,2587.9,0.1798]
[1647013345711,0.96613,2588.3,2587.9,0.1798]
[1647013345909,7.76779099,2588.2,2587.9,0.1798]
[1647013346110,0.05503461,2588.1,2587.9,0.1798]
[1647013346609,0.05503461,2588.1,2588.0,1.20269506]
[1647013346909,0.05503461,2588.1,2588.0,0.3298]
[1647013348344,0.05503461,2588.1,2588.0,0.6298]
[1647013348745,7.7172,2588.2,2588.0,0.6298]
[1647013348943,7.7172,2588.2,2587.9,0.4833647]
[1647013349146,0.05784021,2588.1,2587.9,0.4833647]
[1647013349547,0.05784021,2588.1,2587.9,0.4798]
[1647013349947,7.7172,2588.2,2587.9,0.48338682]
[1647013350750,7.7172,2588.2,2587.9,0.4798]
[1647013351151,7.7172,2588.2,2587.9,0.30358682]
[1647013351892,7.7172,2588.2,2587.9,0.3767691]
[1647013352094,0.04887761,2588.9,2588.0,6.0]
[1647013352296,0.9,2589.3,2588.1,0.0700332]
[1647013352297,0.05170287,2589.2,2588.1,0.0700332]
[1647013352691,3.55170287,2589.2,2588.4,0.88684831]
[1647013352893,0.0506618,2589.1,2588.4,1.18684831]
[1647013353091,0.0506618,2589.1,2588.8,0.0296]
[1647013353594,0.0506618,2589.1,2587.5,1.30439514]
[1647013353595,0.0592,2588.7,2587.5,1.30439514]
[1647013353792,0.0592,2588.7,2588.5,0.00359678]
[1647013354394,0.0592,2588.7,2588.1,0.89268086]
[1647013354592,0.0592,2588.7,2588.5,0.00359681]
[1647013355056,0.05532303,2588.6,2588.5,0.00359681]
[1647013355648,0.05532303,2588.6,2588.2,0.3]
[1647013355851,0.05532303,2588.6,2587.3,2.4725]
[1647013356151,0.05532303,2588.6,2588.4,0.00359684]
[1647013356750,0.05532303,2588.6,2587.8,1.05005267]
[1647013356950,0.05532303,2588.6,2587.8,1.35005267]
[1647013358352,0.0592,2588.7,2587.8,1.35005267]
[1647013359191,0.11773138,2588.7,2587.8,1.35005267]
[1647013359996,0.11773138,2588.7,2587.9,0.4829093]
[1647013360593,0.11773138,2588.7,2587.8,1.35005267]
[1647013360793,0.11773138,2588.7,2588.1,0.00393244]
[1647013361793,0.11773138,2588.7,2588.3,0.00393233]
[1647013361993,0.0592,2588.7,2588.3,0.00393233]
[1647013362840,0.0592,2588.7,2588.2,0.9609366]
[1647013363041,0.0592,2588.7,2588.4,0.00393226]
[1647013364040,0.9,2588.6,2588.2,1.2609366]
[1647013364240,0.04901847,2588.5,2588.4,0.5]
[1647013364444,0.11150918,2588.7,2588.4,0.00405405]
[1647013364643,0.0592,2588.7,2588.4,0.00405405]
[1647013365250,0.9592,2588.7,2588.4,0.00405405]
[1647013365447,0.9592,2588.7,2588.2,1.2609366]
[1647013365647,0.04637392,2588.6,2588.4,0.00392134]
[1647013366497,0.04637392,2588.6,2588.2,1.2609366]
[1647013366697,0.04637392,2588.6,2588.4,0.00392138]
[1647013367594,0.04637392,2588.6,2588.3,0.4828705]
[1647013367798,0.0592,2588.7,2588.3,0.4828705]
[1647013368195,0.0592,2588.7,2588.4,0.00373231]
[1647013368795,0.0592,2588.7,2588.2,1.2609366]
[1647013369196,0.0592,2588.7,2588.4,0.00373559]
[1647013370050,0.0592,2588.7,2588.2,2.2266966]
[1647013370244,0.0592,2588.7,2588.3,0.4828827]
[1647013370449,0.0592,2588.7,2588.4,0.30373559]
[1647013371447,0.0592,2588.7,2588.4,0.3]
[1647013371649,0.0592,2588.7,2588.4,0.3038317]
[1647013372646,0.0592,2588.7,2588.4,0.3]
[1647013372845,0.0592,2588.7,2588.4,0.30383502]
[1647013373247,0.0592,2588.7,2588.4,0.00383502]
[1647013373646,0.9592,2588.7,2588.3,0.3]
[1647013373888,0.95815629,2588.7,2588.2,1.7438604]
[1647013374089,0.95815629,2588.7,2588.4,0.00383502]
[1647013374090,0.05334341,2588.6,2588.4,0.00383502]
[1647013374889,0.05334341,2588.6,2588.2,1.7438604]
[1647013375092,0.05334341,2588.6,2588.4,0.00374899]
[1647013375295,0.05815629,2588.7,2588.4,0.00374899]
[1647013376194,0.05815629,2588.7,2588.3,0.782889]
[1647013376395,0.05815629,2588.7,2588.4,0.3037456]
[1647013376795,0.05815629,2588.7,2588.4,0.0037456]
[1647013377394,0.05815629,2588.7,2588.3,0.3]
[1647013377639,0.05815629,2588.7,2588.4,0.0037456]
[1647013377640,0.95815629,2588.7,2588.4,0.0037456]
[1647013378444,0.05815629,2588.7,2588.2,1.2609366]
[1647013378742,0.05815629,2588.7,2588.4,0.00374726]
[1647013379541,0.05815629,2588.7,2588.2,1.7438555]
[1647013380345,0.05815629,2588.7,2588.4,0.00365397]
[1647013381148,0.05815629,2588.7,2588.2,0.7829189]
[1647013381391,0.95815629,2588.7,2588.4,0.00365397]
[1647013381790,0.05791423,2588.6,2588.4,0.00365397]
[1647013381990,0.05815629,2588.7,2588.4,0.00365397]
[1647013381991,0.9,2588.5,2588.4,0.00365397]
[1647013382191,0.94772078,2588.5,2588.2,0.3]
[1647013382392,0.94772078,2588.5,2588.4,0.00365697]
[1647013382591,0.95772078,2588.5,2588.4,0.00365697]
[1647013383193,0.95772078,2588.5,2588.2,0.3]
[1647013383392,0.95772078,2588.5,2588.1,0.92409861]
[1647013383393,0.94772078,2588.5,2588.1,1.22409861]
[1647013383794,0.94772078,2588.5,2588.3,0.0035917]
[1647013383995,0.04772078,2588.5,2588.3,0.0035917]
[1647013384195,0.05815629,2588.7,2588.3,0.0035917]
[1647013384394,0.05815629,2588.7,2588.2,0.3]
[1647013384595,0.05815629,2588.7,2588.1,1.29598841]
[1647013384795,0.03935629,2588.7,2588.3,0.96930173]
[1647013385051,0.03935629,2588.7,2588.5,0.80837925]
[1647013385246,0.04935629,2588.7,2588.5,1.10837925]
[1647013385746,0.04935629,2588.7,2588.5,0.3]
[1647013385946,0.04935629,2588.7,2588.5,0.3035991]
[1647013386152,0.04935629,2588.7,2588.5,0.0035991]
[1647013386346,0.94935629,2588.7,2588.5,0.0035991]
[1647013386846,0.96597,2588.6,2587.8,0.08240849]
[1647013387047,0.93935629,2588.7,2588.5,0.0035991]
[1647013387248,0.04860817,2588.6,2588.5,0.0035991]
[1647013387450,0.01,2588.6,2588.5,0.0035991]
[1647013388049,0.01,2588.6,2587.9,0.07266557]
[1647013388251,0.03935629,2588.7,2588.1,0.9657804]
[1647013388450,1.58626123,2588.6,2588.4,0.00359771]
[1647013388653,1.59626123,2588.6,2588.4,0.00359771]
[1647013388889,0.01,2588.6,2588.4,0.00359771]
[1647013389293,1.58624679,2588.5,2588.2,0.3]
[1647013389492,1.6438521,2588.5,2588.4,0.00359172]
[1647013389696,1.6538521,2588.5,2588.4,0.00359172]
[1647013390097,0.06760531,2588.5,2588.4,0.00359172]
[1647013390295,1.65384391,2588.5,2588.4,0.00359172]
[1647013390496,1.65384391,2588.5,2587.9,0.3]
[1647013390697,0.03935629,2588.7,2588.3,0.00359175]
[1647013390899,1.58619268,2588.6,2588.3,0.00359175]
[1647013391600,0.03935629,2588.7,2588.4,0.84962664]
[1647013391800,0.04935629,2588.7,2588.4,1.14962664]
[1647013393146,0.04935629,2588.7,2588.4,1.15321909]
[1647013393450,0.04935629,2588.7,2588.4,1.63609519]
[1647013393451,0.03935629,2588.7,2588.4,1.63609519]
[1647013393652,0.03935629,2588.7,2588.5,3.57977562]
[1647013393854,0.03935629,2588.7,2588.4,1.93609519]
[1647013393855,0.03935629,2588.7,2588.6,0.07337576]
[1647013394051,0.03935629,2588.7,2588.6,0.37337576]
[1647013394250,0.03935629,2588.7,2588.6,0.07337576]
[1647013395553,0.03935629,2588.7,2588.5,0.00376032]
[1647013396598,0.03935629,2588.7,2588.3,0.4828882]
[1647013396897,0.03935629,2588.7,2588.5,0.00376031]
[1647013397398,0.04772667,2588.6,2588.5,0.00376031]
[1647013397599,0.04772667,2588.6,2587.8,0.9658949]
[1647013397798,0.04772667,2588.6,2587.9,0.3]
[1647013398197,0.04772667,2588.6,2588.5,0.00376031]
[1647013399011,0.04772667,2588.6,2588.2,0.7829338]
[1647013399203,0.04772667,2588.6,2588.4,0.00380441]
[1647013400246,1.83457941,2588.6,2588.2,0.3]
[1647013400447,0.9,2588.4,2588.0,0.3]
[1647013400647,0.05185603,2588.3,2587.9,0.3]
[1647013401049,0.05185603,2588.3,2587.9,0.7829704]
[1647013401249,1.97139629,2588.7,2587.9,0.7829704]
[1647013401250,0.04607582,2588.6,2587.9,0.7829704]
[1647013401451,1.58651676,2588.5,2588.0,0.00379911]
[1647013401850,0.04607582,2588.6,2588.0,0.00379911]
[1647013402052,0.04607582,2588.6,2588.0,0.48675561]
[1647013402451,0.04607582,2588.6,2588.0,0.4829565]
[1647013402651,0.04607582,2588.6,2588.2,0.00357281]
[1647013403653,0.04607582,2588.6,2588.0,0.4829565]
[1647013403894,0.04607582,2588.6,2588.3,0.00357166]
[1647013404894,0.04607582,2588.6,2588.0,0.4829565]
[1647013405298,0.9,2588.4,2588.0,0.4829565]
[1647013405597,0.9,2588.4,2588.3,0.00357163]
[1647013406198,0.04550761,2588.3,2587.6,1.29251176]
[1647013406397,0.04550761,2588.3,2587.7,0.3]
[1647013406398,0.04801826,2588.1,2587.7,0.3]
[1647013406598,0.04801826,2588.1,2587.3,2.7725]
[1647013406599,0.0560924,2587.8,2587.3,2.7725]
[1647013406803,1.9,2588.1,2587.4,3.5]
[1647013406998,0.9,2588.1,2587.4,3.5]
[1647013407199,0.9,2588.1,2587.6,0.4829455]
[1647013407396,0.9,2588.1,2587.4,0.6]
[1647013407649,0.9,2588.1,2587.6,0.07052091]
[1647013407849,1.79137162,2588.1,2587.4,0.09428477]
[1647013408247,4.39137162,2588.1,2587.4,0.09428477]
[1647013408448,0.93720393,2588.1,2587.4,0.09428477]
[1647013408647,0.93720393,2588.1,2587.3,0.08200135]
[1647013408648,5.43720393,2588.1,2587.3,0.08200135]
[1647013408848,5.43720393,2588.1,2587.4,0.3]
[1647013408849,1.93720393,2588.1,2587.4,0.3]
[1647013409047,5.43720393,2588.1,2587.6,0.00371553]
[1647013409247,0.96626,2587.7,2587.6,0.00371553]
[1647013409450,0.97626,2587.7,2587.6,0.00371553]
[1647013409654,5.34230121,2587.7,2587.6,0.00371553]
[1647013409850,6.39509427,2587.7,2587.5,0.00381347]
[1647013410050,3.5,2587.6,2587.5,0.00381347]
[1647013410253,5.43277,2587.6,2587.5,0.00381347]
[1647013410453,13.16087,2587.6,2587.5,0.00381347]
[1647013410852,13.16087,2587.6,2587.0,0.66984338]
[1647013411052,11.2281,2587.6,2587.0,1.15300388]
[1647013411296,11.2281,2587.6,2587.0,1.45300388]
[1647013411500,11.2281,2587.6,2587.0,1.15300388]
[1647013411696,11.2281,2587.6,2587.0,0.85300388]
[1647013411697,0.96633,2587.5,2587.0,0.85300388]
[1647013411897,1.86633,2587.5,2587.0,0.85300388]
[1647013412102,5.36633,2587.5,2587.0,0.85300388]
[1647013412397,1.86633,2587.5,2587.0,0.85300388]
[1647013412599,0.99622166,2587.3,2587.0,0.85300388]
[1647013412802,1.96262166,2587.3,2587.0,0.66984338]
[1647013412999,0.99622166,2587.3,2587.0,0.66984338]
[1647013413198,0.9,2587.5,2587.0,0.66984338]
[1647013413600,3.5,2587.5,2587.0,0.67371795]
[1647013413800,0.9,2587.2,2587.0,0.67371795]
[1647013414003,1.86643,2587.2,2587.0,0.37371795]
[1647013414400,2.97128572,2587.2,2587.0,0.37371795]
[1647013414604,2.97128572,2587.2,2587.0,0.36984338]
[1647013414800,2.97128572,2587.2,2587.0,0.373919]
[1647013415054,2.98128572,2587.2,2587.0,0.373919]
[1647013415249,0.04562883,2587.1,2587.0,0.373919]
[1647013415448,0.05562883,2587.1,2587.0,0.673919]
[1647013415650,0.05562883,2587.1,2587.0,0.66984338]
[1647013416454,0.05562883,2587.1,2586.5,0.5]
[1647013416455,3.5,2587.0,2586.5,0.5]
[1647013416656,3.5,2587.0,2586.1,0.26630771]
[1647013416657,0.96674,2586.7,2586.1,0.26630771]
[1647013416856,3.5,2586.9,2585.9,1.0]
[1647013416857,0.96681,2586.2,2585.9,1.0]
[1647013417454,1.93361,2586.5,2585.6,0.08807214]
[1647013417854,2.82969161,2586.5,2585.7,0.07073602]
[1647013418355,0.96675,2586.4,2585.9,0.00372218]
[1647013418554,4.46675,2586.4,2585.9,0.00372218]
[1647013418798,0.96675,2586.4,2585.9,0.00372218]
[1647013419201,4.46675,2586.4,2585.9,0.00372218]
[1647013419398,0.96675,2586.4,2585.7,0.55410032]
[1647013419600,0.96675,2586.4,2586.0,0.00372211]
[1647013419906,1.00972445,2586.6,2586.0,0.00372211]
[1647013420706,4.50972445,2586.6,2585.8,0.00644091]
[1647013420904,0.88783228,2586.5,2586.2,0.00372201]
[1647013421706,0.88783228,2586.5,2585.9,0.7833428]
[1647013421906,1.00972445,2586.6,2585.9,1.7500228]
[1647013422104,1.00972445,2586.6,2585.9,1.7499538]
[1647013422105,0.04303445,2586.6,2585.9,1.7499538]
[1647013422305,2.8541,2586.8,2586.2,0.00359623]
[1647013422570,2.8541,2586.8,2586.2,0.48688523]
[1647013422854,0.04562708,2586.9,2586.3,0.3]
[1647013423055,1.90715515,2587.0,2586.3,0.36937051]
[1647013423254,0.90715515,2587.0,2586.3,0.36937051]
[1647013423459,0.90715515,2587.0,2586.4,0.00359614]
[1647013423655,6.43318,2587.1,2586.4,0.00359614]
[1647013423858,0.96654,2587.0,2586.4,0.48685484]
[1647013424160,0.96654,2587.0,2586.5,0.3]
[1647013424756,0.96654,2587.0,2586.6,0.00359599]
[1647013425561,0.96654,2587.0,2586.7,0.00366808]
[1647013425962,0.82176912,2586.8,2586.7,0.00366808]
[1647013426162,4.32176912,2586.8,2586.7,0.00366808]
[1647013426395,1.87044288,2586.8,2586.7,0.00366808]
[1647013426593,0.9,2586.7,2585.9,0.07209151]
[1647013426796,8.54986912,2586.8,2585.9,0.07209151]
[1647013427095,7.7281,2586.8,2586.6,0.00366811]
[1647013427894,7.7281,2586.8,2586.6,0.00366814]
[1647013429196,7.7281,2586.8,2586.6,0.00405888]
[1647013430251,7.7281,2586.8,2586.4,0.4832464]
[1647013430450,7.7281,2586.8,2586.6,0.00405888]
[1647013431048,8.57920899,2586.8,2586.6,0.00405888]
[1647013431247,8.57920899,2586.8,2586.1,0.08381722]
[1647013431448,8.57920899,2586.8,2586.1,1.05035722]
[1647013431648,8.57920899,2586.8,2586.2,0.07811934]
[1647013431851,8.57920899,2586.8,2586.6,0.00405888]
[1647013432650,8.57920899,2586.8,2586.4,0.07126124]
[1647013432853,13.94581899,2586.8,2586.4,0.07126124]
[1647013433049,10.44581899,2586.8,2586.6,0.00404874]
[1647013433894,10.44581899,2586.8,2586.2,0.37857385]
[1647013434094,8.69471,2586.8,2586.6,0.00404874]
[1647013434295,7.7281,2586.8,2586.6,0.00404874]
[1647013435096,7.7281,2586.8,2586.4,0.06964305]
[1647013435299,7.7281,2586.8,2586.6,0.00404874]
[1647013436097,7.7281,2586.8,2586.5,0.38679779]
[1647013436497,7.7281,2586.8,2586.6,0.00404604]
[1647013437398,7.7281,2586.8,2586.5,0.08679779]
[1647013437850,7.7281,2586.8,2586.6,0.00404604]
[1647013438051,7.72722488,2586.8,2586.6,0.00404604]
[1647013438752,7.72722488,2586.8,2586.5,0.08679779]
[1647013439051,7.72722488,2586.8,2586.6,0.00404604]
[1647013439551,7.72722488,2586.8,2586.6,1.1138652]
[1647013439750,7.72722488,2586.8,2586.7,0.0892461]
[1647013440563,7.72722488,2586.8,2586.6,0.30394994]
[1647013440758,8.62722488,2586.8,2586.6,0.30394994]
[1647013441155,8.62722488,2586.8,2586.6,0.3]
[1647013441394,8.62722488,2586.8,2586.6,0.30394991]
[1647013441797,8.62722488,2586.8,2586.6,0.00394991]
[1647013442194,8.62722488,2586.8,2586.4,0.0777562]
[1647013442795,8.62722488,2586.8,2586.6,0.00394994]
[1647013443201,3.5,2586.7,2586.6,0.00394994]
[1647013443397,4.5,2586.7,2586.6,0.00394994]
[1647013443596,4.5,2586.7,2585.8,1.29813078]
[1647013443597,0.04861696,2586.6,2585.8,1.29813078]
[1647013443796,0.9,2586.3,2585.8,1.29813078]
[1647013443999,3.5,2586.2,2586.1,0.01593031]
[1647013444211,3.5,2586.2,2584.9,9.31923895]
[1647013444212,16.83,2586.1,2585.0,1.0]
[1647013444403,16.83,2586.1,2584.4,0.08568396]
[1647013444404,12.79714,2585.7,2584.4,0.08568396]
[1647013444603,16.2194074,2585.6,2584.4,0.08568396]
[1647013444803,16.2194074,2585.6,2584.5,0.04206333]
[1647013444804,0.0437811,2585.5,2584.5,0.04206333]
[1647013445059,1.02644398,2585.3,2584.5,0.04206333]
[1647013445251,8.18822488,2585.4,2584.5,0.04206333]
[1647013445252,1.02116081,2585.2,2584.5,0.04206333]
[1647013445451,1.98854301,2585.2,2584.5,0.04206333]
[1647013445651,1.02116081,2585.2,2584.5,0.04206333]
[1647013445855,1.92116081,2585.2,2584.5,0.04206333]
[1647013446453,4.51938094,2585.1,2584.5,0.04206333]
[1647013446653,5.48672094,2585.1,2584.5,0.04206333]
[1647013446854,0.05181082,2585.0,2584.5,0.04206333]
[1647013447254,0.05220548,2584.8,2584.4,0.04263176]
[1647013447454,0.05220548,2584.8,2584.7,0.00418041]
[1647013447856,0.05220548,2584.8,2584.7,0.0451069]
[1647013448054,0.05220548,2584.8,2584.7,0.04092649]
[1647013448255,3.55220548,2584.8,2584.7,0.04092649]
[1647013448559,0.95220548,2584.8,2584.6,0.00418048]
[1647013448805,0.9,2584.8,2584.6,0.00418048]
[1647013449007,0.9,2584.8,2584.7,0.04092649]
[1647013449209,8.18822488,2585.4,2584.7,0.04092649]
[1647013449507,7.72722488,2585.4,2584.7,0.04092649]
[1647013449708,8.72722488,2585.4,2584.7,0.04092649]
[1647013450108,7.72722488,2585.4,2584.6,0.04567543]
[1647013450307,8.69433488,2585.4,2584.7,0.04092649]
[1647013450509,7.72722488,2585.4,2584.7,0.04092649]
[1647013450910,7.72722488,2585.4,2584.7,1.20177686]
[1647013451116,7.72722488,2585.4,2584.8,0.08876198]
[1647013451311,7.72722488,2585.4,2585.1,0.08039539]
[1647013452306,7.72722488,2585.4,2585.1,0.08431078]
[1647013452562,7.72722488,2585.4,2585.3,0.07321341]
[1647013454255,7.72722488,2585.4,2585.3,0.55655461]
[1647013454452,7.72722488,2585.4,2585.3,0.4833412]
[1647013454652,7.72722488,2585.4,2585.3,0.7833412]
[1647013456494,7.03267961,2585.4,2585.3,2.7165912]
[1647013456704,0.384561,2586.9,2585.8,0.96645]
[1647013456895,9.0295,2587.3,2586.0,0.96641]
[1647013456896,0.00417803,2586.5,2586.0,0.96641]
[1647013457097,0.00417803,2586.5,2586.0,1.26641]
[1647013457296,0.00417803,2586.5,2586.1,0.96372957]
[1647013457897,3.5,2587.4,2586.1,0.96372957]
[1647013458097,0.0041789,2586.5,2586.3,0.96627]
[1647013458295,0.0041789,2586.5,2586.3,2.23256]
[1647013458696,0.0041789,2586.5,2586.4,1.01174821]
[1647013459200,6.31522642,2587.6,2586.4,1.01174821]
[1647013459396,6.31522642,2587.6,2586.8,0.4831245]
[1647013459397,2.81522642,2587.6,2586.8,0.4831245]
[1647013459597,0.05082642,2587.6,2586.8,0.7831245]
[1647013460449,0.83205387,2587.5,2586.8,0.7831245]
[1647013460650,0.83205387,2587.5,2586.8,0.7831355]
[1647013460850,0.00382712,2587.3,2586.8,0.7831355]
[1647013461251,0.00382712,2587.3,2586.8,0.3]
[1647013461555,0.83205387,2587.5,2586.6,1.266249]
[1647013461751,0.00382722,2587.2,2586.6,1.266249]
[1647013462852,0.05082642,2587.6,2586.6,1.266249]
[1647013463052,0.00386191,2587.0,2586.6,1.266249]
[1647013463899,0.05082642,2587.6,2586.6,1.266249]
[1647013464103,0.00386198,2586.9,2586.8,0.4831361]
[1647013464299,0.00386198,2586.9,2586.8,0.7831361]
[1647013465102,0.05082642,2587.6,2586.8,0.7831361]
[1647013465305,0.00386195,2587.0,2586.8,0.7831361]
[1647013466105,0.00386195,2587.0,2586.8,1.7493661]
[1647013466305,0.9,2587.8,2587.1,0.4830979]
[1647013466813,5.0871298,2587.7,2586.3,9.171904]
[1647013467008,5.0871298,2587.7,2586.2,2.386]
[1647013467009,0.00154001,2586.3,2586.2,2.386]
[1647013467211,0.00154001,2586.3,2586.0,0.00456642]
[1647013467406,0.00154001,2586.3,2586.0,0.00081009]
[1647013468668,0.00154001,2586.3,2585.5,0.25]
[1647013468866,0.00154001,2586.3,2585.3,7.3781]
[1647013469269,0.9,2586.1,2585.3,7.3781]
[1647013469470,0.9,2586.1,2585.1,2.3767]
[1647013469670,0.00154001,2586.3,2584.9,0.75]
[1647013469671,4.46688,2586.0,2584.9,0.75]
[1647013469870,0.05232317,2585.9,2584.9,0.75]
[1647013470067,0.461,2585.8,2584.9,0.75]
[1647013470266,0.05052358,2585.7,2584.8,0.04035806]
[1647013470468,0.461,2585.6,2584.8,0.04035806]
[1647013470666,1.25610819,2585.6,2585.2,0.01670701]
[1647013471067,2.32811,2585.6,2584.8,0.04035806]
[1647013471301,0.9,2585.6,2585.1,0.00417647]
[1647013471503,1.50498108,2586.0,2585.1,0.00417647]
[1647013471805,7.7353,2585.9,2585.1,0.00417647]
[1647013472400,7.7353,2585.9,2585.1,0.96679]
[1647013472600,7.7353,2585.9,2584.7,0.04092649]
[1647013472801,0.9,2585.8,2585.4,0.00417626]
[1647013473201,4.4,2585.8,2585.4,0.00417626]
[1647013473602,5.36692,2585.8,2584.7,0.04092649]
[1647013473800,6.36692,2585.8,2584.7,0.04092649]
[1647013474000,6.36692,2585.8,2585.5,0.00417619]
[1647013474201,7.7353,2585.7,2585.5,0.00417619]
[1647013474403,3.54770527,2585.6,2585.5,7.619e-05]
[1647013474607,4.90870527,2585.6,2585.5,7.619e-05]
[1647013474902,0.04815809,2585.5,2584.7,0.04092649]
[1647013475158,8.1963,2585.4,2584.7,0.04092649]
[1647013475362,8.1963,2585.4,2584.5,0.08136922]
[1647013475363,8.1963,2585.4,2585.1,0.01574933]
[1647013475754,4.0,2585.3,2584.7,0.08644034]
[1647013475958,3.5,2585.2,2584.6,0.04149491]
[1647013476155,1.05368085,2585.3,2584.8,0.04035806]
[1647013476156,1.02089085,2585.3,2584.8,0.04035806]
[1647013476354,0.04893415,2585.2,2584.4,0.04263176]
[1647013476858,12.1353,2585.4,2584.9,1.11371918]
[1647013477058,12.1353,2585.4,2585.0,0.07620364]
[1647013477059,8.6353,2585.4,2585.0,0.07620364]
[1647013477260,0.00239597,2585.3,2585.0,0.07620364]
[1647013477455,0.01239597,2585.3,2584.9,0.3]
[1647013477655,0.00239597,2585.3,2584.9,0.3]
[1647013477854,0.00239597,2585.3,2584.6,0.37740858]
[1647013478255,8.6353,2585.4,2584.7,0.04092649]
[1647013478455,0.00417201,2585.3,2585.0,0.08652445]
[1647013478656,0.01417201,2585.3,2585.0,0.08652445]